Workbook

Sheet Plan1
A1: PLANILHA DE CUSTOS E FORMAÇÃO DE PREÇOS
A2: RECEPÇÃO
A4: Pregão nº xxx/xxx
A5: Processo Nº xxxxxxxxxx
A6: Dia ___/___/_____ às ___:___ horas
A9: DISCRIMINAÇÃO DOS SERVIÇOS (DADOS REFERENTES À CONTRATAÇÃO)
A10: A | B10: Data de apresentação da proposta (dia/mês/ano) | D10: Licitante Preencher
A11: B | B11: Município/UF | D11: Teresina/PI
A12: C | B12: Ano Acordo, Convenção ou Sentença Normativa em Dissídio Coletivo | D12: MR010882/2025
A13: D | B13: Nºde meses de execução contratual | D13: 12
A14: E | B14: Regime Tributário da Empresa | D14: Licitante Preencher
A15: F | B15: Se Optante pelo Simples Nacional, preencher o faturamento acumulado dos últimos 12 meses anteriores à proposta. | D15: Licitante Preencher
A16: Mão de Obra
A17: Mão-de-obra vinculada à execução contratual
A18: Dados complementares para composição dos custos referente à mão-de-obra
A19: 1 | B19: Tipo de serviço (mesmo serviço com características distintas) | D19: =A2 -> RECEPÇÃO
A20: 2 | B20: Classificação Brasileira de Ocupações (CBO) | D20: 4221-05
A21: 3 | B21: Salário Normativo da Categoria Profissional
A22: 4 | B22: Categoria profissional (vinculada à execução contratual) | D22: =A2 -> RECEPÇÃO
A23: 5 | B23: Data base da categoria (dia/mês/ano) (CCT 2025) | D23: 1º/01/2025
A26: Módulo 1 - Remuneração
A27: 1 | B27: Composição da Remuneração | D27: Valor (R$)
A28: A | B28: Salário Base
B29: Total da Remuneração | D29: =SUM(D28:D28) -> 0
A31: Módulo 2 - Encargos e Benefícios Anuais, Mensais e Diários
A32: Submódulo 2.1 - 13º (décimo terceiro) Salário e Adicional de Férias
A33: 2.1 | B33: 13º (décimo terceiro) Salário e Adicional de Férias | D33: Valor (R$)
A34: A | B34: 13º (décimo terceiro) Salário (Valor referente a 1/12 x Remuneração.) | C34: 0.0833
A35: B | B35: Adicional de Férias (Valor referente a 1/3 x 1/12 x Remuneração) | C35: 0.02776666667
A36: Subtotal (R$)
B37: Incidência de 2.2 | C37: =C50 -> 0.353
A38: Total (R$)
A40: Submódulo 2.2 - Encargos Previdenciários (GPS), Fundo de Garantia por Tempo de Serviço (FGTS) e outras contribuições
A41: 2.2 | B41: Encargos Previdenciários (GPS), Fundo de Garantia por Tempo de Serviço (FGTS) e outras contribuições | C41: Percentual (%) | D41: Valor (R$)
A42: A | B42: INSS (Art. 22, Inciso I, da Lei 8.212, de 24 de julho de 1991.​) | C42: 0.2 | D42: =C42*$D$29 -> 0
A43: B | B43: Salário Educação (Art. 3º, Inciso I, Decreto 87.043, de 22 de março de 1982.​) | C43: 0.025 | D43: =C43*$D$29 -> 0
A44: C | B44: SAT (Art. 22, II, Lei 8.212, de 1991. Resolução MPS/CNPS Nº 1.329, de 25/4/2017.). RAT: 8211-3/00. FAP neutro = 1. Empresa deve preencher de acordo com o valor por ela suportado. | C44: 0.015 | D44: 0
A45: D | B45: SESC ou SESI (Art. 30, Lei 8.036, de 11 de maio de 1990.) | C45: 0.015 | D45: 0
A46: E | B46: SENAI - SENAC (Art. 1º, caput, Decreto-Lei 6.246, de 1944 (SENAI) e art. 4º, caput do Decreto-Lei 8.621, de 1946. (SENAC). | C46: 0.01 | D46: 0
A47: F | B47: SEBRAE (Art. 8º, Lei 8.029, de 12 de abril de 1990.) | C47: 0.006 | D47: 0
A48: G | B48: INCRA (Art. 1°, I, 2 c/c art. 3°, ambos do Decreto-Lei 1.146, de 31 de dezembro de 1970.) | C48: 0.002 | D48: 0
A49: H | B49: FGTS | C49: 0.08 | D49: 0
A50: Total (R$) | C50: =SUM(C42:C49) -> 0.353 | D50: =SUM(D42:D49) -> 0
A52: Submódulo 2.3 - Benefícios Mensais e Diários
A53: 2.3 | B53: Benefícios Mensais e Diários | D53: Valor (R$)
A54: B | B54: Auxílio Refeição/Alimentação (Clausula 9ª do ACT)
A55: C | B55: Assistência Médica (Cláusula 13ª do ACT)
A56: D | B56: Vale transporte (Cláusula 11ª do ACT) (R$4,00/passagem)
A57: E | B57: Seguro de Vida (Cláusula 14ª do ACT)
A59: Total (R$) | D59: =SUM(D54:D58) -> 0
A61: Quadro-Resumo do Módulo 2 - Encargos e Benefícios anuais, mensais e diários
A62: 2 | B62: Encargos e Benefícios Anuais, Mensais e Diários | D62: Valor (R$)
A63: 2.1 | B63: 13º (décimo terceiro) Salário e Adicional de Férias | D63: =D38 -> 0
A64: 2.2 | B64: Encargos Previdenciários (GPS), Fundo de Garantia por Tempo de Serviço (FGTS) e outras contribuições | D64: =D50 -> 0
A65: 2.3 | B65: Benefícios Mensais e Diários
A66: Total (R$) | D66: =SUM(D63:D65) -> 0
A68: Módulo 3 - Provisão para Rescisão
A69: 3 | B69: Provisão para Rescisão | C69: % | D69: Valor (R$)
A70: A | B70: Aviso prévio indenizado (Premissa de que 5% dos funcionários serão demitidos em condições de receber aviso prévio indenizado.) | C70: =5%*1/12 -> 0.004166666667 | D70: =C70*$D$29 -> 0
A71: B | B71: Incidência do FGTS sobre o Aviso prévio indenizado (incidência de 8% do FGTS sobre o % do aviso prévio indenizado) | C71: =8%*C70 -> 0.0003333333333 | D71: =C71*$D$29 -> 0
A72: C | B72: Multa do FGTS sobre o Aviso Prévio Indenizado (Base de Cálculo da Multa é a soma do módulo 1 com submódulo 2.1 sem incidência dos encargos do 2.2.) | C72: =5%*40%*8% -> 0.0016 | D72: =C72*($D$29+$D$36) -> 0
A73: D | B73: Aviso prévio trabalhado (Premissa de que 100% dos funcionários serão demitidos ao final do contrato de 12 meses. | C73: =1.94444444444444% -> 0.01944444444 | D73: =C73*$D$29 -> 0
A74: E | B74: Incidência do Submódulo 2.2 sobre o Aviso Prévio Trabalhado (incidência de 8% do FGTS sobre o % do aviso prévio trabalhado) | C74: =C73*C50 -> 0.006863888889 | D74: 0
A75: F | B75: Multa do FGTS sobre o Aviso Prévio Trabalhado (Base de Cálculo da Multa é a soma do módulo 1 com submódulo 2.1 sem incidência dos encargos do 2.2) | C75: =40%*8% -> 0.032 | D75: =C75*($D$29+$D$36) -> 0
A76: Total (R$) | D76: =SUM(D70:D75) -> 0
A78: Módulo 4 - Custo de Reposição do Profissional Ausente
A79: Base de Cálculo do Custo do Substituto - BCCS = Módulos 1 + 2 + Férias - (V. Transporte e V. Alimentação) + 3
A80: Módulo 1 - Remuneração | D80: =D29 -> 0
A81: Módulo 2 - Encargos e Benefícios Anuais, Mensais e Diários | D81: =D66 -> 0
A82: Acréscimo das Férias com incidência do 2.2 | D82: =1/12*D29*(1+C50) -> 0
A83: Desconto do Auxílio-Refeição
A84: Módulo 3 - Provisão para Rescisão | D84: =D76 -> 0
A85: BCCS
A87: Submódulo 4.1 - Ausências Legais
A88: 4.1 | B88: Ausências Legais | C88: % | D88: Valor (R$)
A89: A | B89: Férias | C89: 0.08333333333
A90: B | B90: Auxílio Doença (De acordo com dados do MTPS, foram concedidos 1.462.463 benefícios de auxílio doença urbano no ano de 2023 em uma população de contribuintes para o INSS de 54.796.761 pessoas (http://www.mtps.gov.br/dados-abertos/dados-da-previdencia/previdencia-social-e- inss/boletim-estatistico-da-previdencia-social-beps). X 15 dias de afastamento/30 dias) | C90: =(1462463/54796761)*(15/30)*1/12 -> 0.00111203577
A91: C | B91: Acidente de Trabalho (Estimativa de 1 licença de 15 dias por ano para 1,22% dos empregados. Esta taxa foi obtida pela proporção de acidentes de trabalho registrados, 717.911, conforme dados do Anuário Estatístico da Previdência Social – AEPS/2013, em relação a 58.981.000 de trabalhadores que fazem jus a emissão da CAT (trabalhadores com carteira assinada, outros tipos de trabalhadores e domésticas), conforme dados da PNAD 2013.) | C91: =(717911/58981000)*(15/30)*1/12 -> 0.0005071626173
A92: D | B92: Faltas Legais (Estimativa de 1,4947 ausências por ano, de acordo com a IN 2/2008-MPOG 1,4947/30 x 1/12 = 0,415%) | C92: =1.4947*1/30*1/12 -> 0.004151944444
A93: E | B93: Férias sobre afastamento maternidade (Estimativa de 1,416% (taxa de natalidade da população brasileira/IBGE) de empregadas usufruindo 4 meses de licença por ano.) | C93: =1.416%*8.33%*120/30*1/12 -> 0.000393176
A94: F | B94: Licença paternidade (Estimativa de 1,416% (taxa de natalidade da população brasileira/IBGE) dos empregados usufruindo 5 dias da licença por ano.) | C94: =1.416%*5/30*1/12 -> 0.0001966666667
A95: Total (R$)
A97: Módulo 5 - Insumos Diversos
A98: 5 | B98: Insumos Diversos | D98: Valor (R$)
A99: A | B99: Uniformes
A100: Total (R$) | D100: =SUM(D99:D99) -> 0
A102: CUSTO TOTAL POR EMPREGADO
A103: MÓDULO | D103: Valor (R$)
A104: Módulo 1 - Remuneração | D104: =D29 -> 0
A105: Módulo 2 - Encargos e Benefícios Anuais, Mensais e Diários | D105: =D66 -> 0
A106: Módulo 3 - Provisão para Rescisão | D106: =D76 -> 0
A107: Módulo 4 - Custo de Reposição do Profissional Ausente | D107: =D95 -> 0
A108: Módulo 5 - Insumos Diversos | D108: =D100 -> 0
A109: Total Custos Diretos | D109: =SUM(D104:D108) -> 0
A111: Módulo 6 - Custos Indiretos, Tributos e Lucro
A112: 6 | B112: CITL | D112: Valor (R$)
A113: A | B113: Custos Indiretos | C113: 0.1
A114: B | B114: Subtotal 1 (A + Total Custos Diretos)
A115: C | B115: Lucro | C115: 0.1
A116: D | B116: Subtotal 2 (D=B+C)
A117: E | B117: Tributos (estimado com base no Lucro Presumido - a empresa deverá preencher de acordo com o regime tributário a que é submetida) - (E=(D/(1-Tributos%))x(Tributos%) | C117: =SUM(C118:C120) -> 0.0865
A118: E.1 | B118: COFINS | C118: 0.03
A119: E.2 | B119: PIS | C119: 0.0065
A120: E.3 | B120: ISS | C120: 0.05
A121: Total Módulo 6 - CITL ou BDI
A122: TOTAL MENSAL POR POSTO (R$)
B123: TOTAL DOS DOIS POSTOS (R$) | D123: =D122*2 -> 0
D125: =D123*12 -> 0

Sheet UNIFORME
A1: UNIFORMES
A2: ITEM | B2: VALOR UNIT | C2: VALOR TOTAL
A3: calça | C3: =B3*2 -> 0
A4: camisa | C4: =B4*4 -> 0
A5: meias | C5: =B5*4 -> 0
A6: Crachá | C6: =B6 -> 0
A7: SAPATO | C7: =B7 -> 0
A8: TOTAL | C8: =SUM(C3:C7)*2 -> 0
C9: =C8/12 -> 0
